fUST/lending_fUST_20250904
["ID","MTS","AMOUNT","RATE_DAILY","PERIOD"]
[383482722,1756957844647,-151.0,0.00014794,2]
[383482724,1756957844656,-151.0,0.00014794,2]
[383482726,1756957844666,-480.0,0.00014794,2]
[383482728,1756957844675,-480.0,0.00014794,2]
[383482730,1756957844684,-480.0,0.00014794,2]
[383482732,1756957844693,-480.0,0.00014794,2]
[383482734,1756957844702,-480.0,0.00014794,2]
[383482736,1756957844711,-151.0,0.00014794,2]
[383482747,1756957844721,-151.0,0.00014794,2]
[383482752,1756957844841,-151.0,0.00014794,2]
[383482754,1756957844851,-151.0,0.00014794,2]
[383482756,1756957844861,-156.783332,0.00014794,2]
[383482758,1756957844871,-151.0,0.00014794,2]
[383482760,1756957844880,-151.0,0.00014794,2]
[383482762,1756957844889,-151.0,0.00014794,2]
[383482764,1756957844898,-153.570921,0.00014794,2]
[383482766,1756957844909,-262.29914732,0.00014794,2]
[383482768,1756957844917,-151.590363,0.00014794,2]
[383482770,1756957844926,-360.97995712,0.00014794,2]
[383482772,1756957844935,-480.0,0.00014794,2]
[383482774,1756957844944,-151.0,0.00014794,2]
[383482776,1756957844953,-152.903263,0.00014794,2]
[383482778,1756957844963,-480.0,0.00014794,2]
[383482780,1756957844973,-1224.28,0.00014794,2]
[383482782,1756957844983,-851.56,0.00014794,2]
[383482784,1756957844997,-923.88,0.00014794,2]
[383482786,1756957845009,-1230.54,0.00014794,2]
[383482788,1756957845021,-957.57,0.00014794,2]
[383482790,1756957845033,-480.0,0.00014794,2]
[383482792,1756957845042,-480.0,0.00014794,2]
[383482794,1756957845051,-480.0,0.00014794,2]
[383482796,1756957845060,-480.0,0.00014794,2]
[383482798,1756957845069,-480.0,0.00014794,2]
[383482800,1756957845078,-761.13,0.00014794,2]
[383482802,1756957845088,-480.0,0.00014794,2]
[383482804,1756957845097,-1716.03,0.00014794,2]
[383482806,1756957845107,-480.0,0.00014794,2]
[383482808,1756957845117,-480.0,0.00014794,2]
[383482810,1756957845126,-560.38,0.00014794,2]
[383482812,1756957845135,-2238.11,0.00014794,2]
[383482814,1756957845144,-480.0,0.00014794,2]
[383482816,1756957845153,-555.85,0.00014794,2]
[383482818,1756957845165,-480.0,0.00014794,2]
[383482820,1756957845174,-480.0,0.00014794,2]
[383482822,1756957845183,-480.0,0.00014794,2]
[383482824,1756957845193,-500.62729822,0.00014806,2]
[383482826,1756957845202,-480.14756873,0.000149,2]
[383482828,1756957845212,-501.38012518,0.0001494,2]
[383482830,1756957845221,-500.87818574,0.00014942,2]
[383482832,1756957845231,-501.97225585,0.00014974,2]
[383482834,1756957845242,-500.9306271,0.00014974,2]
[383482836,1756957845251,-501.89351002,0.00014974,2]
[383482838,1756957845260,-500.0,0.00015003,2]
[383482840,1756957845269,-420.0,0.00015009,2]
[383482842,1756957845278,-500.0,0.00015068,2]
[383482844,1756957845287,-480.0,0.00015068,2]
[383482846,1756957845297,-480.0,0.00015068,2]
[383482848,1756957845306,-480.0,0.00015068,2]
[383482850,1756957845316,-480.0,0.00015068,2]
[383482852,1756957845325,-480.0,0.00015068,2]
[383482854,1756957845334,-480.0,0.00015068,2]
[383482856,1756957845344,-480.0,0.00015068,2]
[383482858,1756957845353,-480.0,0.00015068,2]
[383482860,1756957845363,-194.53632978,0.00015068,2]
[383482862,1756957845372,-151.0,0.00015068,2]
[383482864,1756957845381,-151.0,0.00015068,2]
[383482866,1756957845390,-480.0,0.00015068,2]
[383482868,1756957845400,-151.0,0.00015068,2]
[383482870,1756957845409,-1224.28,0.00015068,2]
[383482872,1756957845419,-851.56,0.00015068,2]
[383482874,1756957845428,-923.88,0.00015068,2]
[383482876,1756957845439,-1230.54,0.00015068,2]
[383482878,1756957845448,-957.57,0.00015068,2]
[383482880,1756957845458,-295.30049674,0.00015068,2]
[383482882,1756957845467,-480.0,0.00015068,2]
[383482884,1756957845477,-151.0,0.00015068,2]
[383482886,1756957845487,-159.66255,0.00015068,2]
[383482888,1756957845496,-480.0,0.00015068,2]
[383482890,1756957845505,-151.0,0.00015068,2]
[383482892,1756957845514,-480.0,0.00015068,2]
[383482894,1756957845524,-480.0,0.00015068,2]
[383482896,1756957845533,-761.13,0.00015068,2]
[383482898,1756957845543,-480.0,0.00015068,2]
[383482900,1756957845552,-1716.03,0.00015068,2]
[383482902,1756957845561,-480.0,0.00015068,2]
[383482904,1756957845570,-178.086521,0.00015068,2]
[383482906,1756957845580,-178.086521,0.00015068,2]
[383482908,1756957845589,-480.0,0.00015068,2]
[383482910,1756957845599,-560.38,0.00015068,2]
[383482912,1756957845608,-178.086521,0.00015068,2]
[383482914,1756957845617,-178.086521,0.00015068,2]
[383482916,1756957845626,-2238.11,0.00015068,2]
[383482918,1756957845636,-480.0,0.00015068,2]
[383482920,1756957845645,-555.85,0.00015068,2]
[383482922,1756957845654,-151.0,0.00015068,2]
[383482924,1756957845665,-480.0,0.00015068,2]
[383482926,1756957845675,-151.0,0.00015068,2]
[383482928,1756957845685,-210.85503184,0.00015068,2]
[383482930,1756957845694,-480.0,0.00015068,2]
[383482932,1756957845706,-1000.0,0.00015123,2]
[383482934,1756957845715,-1000.0,0.00015123,2]
[383482936,1756957845724,-1000.0,0.00015123,2]
[383482938,1756957845733,-521.434516,0.00015137,2]
[383482940,1756957845742,-521.434516,0.00015137,2]
[383482942,1756957845751,-521.434516,0.00015137,2]
[383482944,1756957845761,-521.434516,0.00015137,2]
[383482946,1756957845770,-151.0,0.00015137,2]
[383482948,1756957845779,-519.63847923,0.00015137,2]
[383482950,1756957845788,-509.01026563,0.00015137,2]
[383482952,1756957845798,-1000.0,0.00015161,2]
[383482954,1756957845808,-503.40915118,0.00015161,2]
[383482956,1756957845817,-480.14756873,0.00015242,2]
[383482958,1756957845827,-1004.40997062,0.00015306,2]
[383482959,1756957845842,-500.0,0.00015342,2]
[383482961,1756957845851,-151.0,0.00015342,2]
[383482963,1756957845861,-150.33192379,0.00015342,2]
[383482965,1756957845870,-151.0,0.00015342,2]
[383482967,1756957845881,-151.0,0.00015342,2]
[383482969,1756957845891,-480.0,0.00015342,2]
[383482971,1756957845900,-151.0,0.00015342,2]
[383482973,1756957845910,-151.0,0.00015342,2]
[383482975,1756957845920,-151.0,0.00015342,2]
[383482977,1756957845929,-314.4062988,0.00015342,2]
[383482979,1756957845939,-151.0,0.00015342,2]
[383482981,1756957845949,-480.0,0.00015342,2]
[383482983,1756957845959,-480.0,0.00015342,2]
[383482985,1756957845967,-284.38677616,0.00015342,2]
[383482987,1756957845977,-480.0,0.00015342,2]
[383482989,1756957845987,-152.242462,0.00015342,2]
[383482991,1756957845998,-480.0,0.00015342,2]
[383482993,1756957846007,-1224.28,0.00015342,2]
[383482995,1756957846017,-851.56,0.00015342,2]
[383482997,1756957846027,-923.88,0.00015342,2]
[383482999,1756957846037,-1230.54,0.00015342,2]
[383483001,1756957846047,-957.57,0.00015342,2]
[383483003,1756957846057,-480.0,0.00015342,2]
[383483005,1756957846066,-480.0,0.00015342,2]
[383483007,1756957846076,-622.4407,0.00015342,2]
[383483009,1756957846085,-237.11779469,0.00015342,2]
[383483011,1756957846095,-761.13,0.00015342,2]
[383483013,1756957846104,-480.0,0.00015342,2]
[383483015,1756957846114,-1716.03,0.00015342,2]
[383483017,1756957846125,-480.0,0.00015342,2]
[383483019,1756957846134,-480.0,0.00015342,2]
[383483021,1756957846144,-560.38,0.00015342,2]
[383483023,1756957846153,-2238.11,0.00015342,2]
[383483025,1756957846163,-480.0,0.00015342,2]
[383483028,1756957846172,-555.85,0.00015342,2]
[383483030,1756957846182,-480.0,0.00015342,2]
[383483032,1756957846191,-480.0,0.00015342,2]
[383483035,1756957846200,-194.72792766,0.00015394,2]
[383483037,1756957846210,-151.0,0.000155,2]
[383483039,1756957846219,-151.0,0.00015551,2]
[383483041,1756957846228,-217.28705225,0.00015551,2]
[383483043,1756957846237,-500.0,0.00015616,2]
[383483045,1756957846248,-151.909546,0.00015616,2]
[383483047,1756957846260,-480.0,0.00015616,2]
[383483049,1756957846270,-287.007002,0.00015616,2]
[383483051,1756957846279,-151.0,0.00015616,2]
[383483053,1756957846289,-151.0,0.00015616,2]
[383483055,1756957846299,-151.0,0.00015616,2]
[383483057,1756957846308,-201.385178,0.00015616,2]
[383483059,1756957846317,-153.696868,0.00015616,2]
[383483061,1756957846326,-151.0,0.00015616,2]
[383483063,1756957846336,-151.0,0.00015616,2]
[383483065,1756957846345,-480.0,0.00015616,2]
[383483067,1756957846355,-480.0,0.00015616,2]
[383483069,1756957846364,-151.0,0.00015616,2]
[383483071,1756957846373,-480.0,0.00015616,2]
[383483073,1756957846382,-151.0,0.00015616,2]
[383483074,1756957846391,-151.0,0.00015616,2]
[383483076,1756957846400,-151.0,0.00015616,2]
[383483078,1756957846410,-152.322662,0.00015616,2]
[383483080,1756957846422,-152.878388,0.00015616,2]
[383483082,1756957846432,-480.0,0.00015616,2]
[383483084,1756957846442,-1224.28,0.00015616,2]
[383483086,1756957846451,-851.56,0.00015616,2]
[383483088,1756957846461,-923.88,0.00015616,2]
[383483090,1756957846470,-1230.54,0.00015616,2]
[383483092,1756957846479,-957.57,0.00015616,2]
[383483094,1756957846489,-480.0,0.00015616,2]
[383483096,1756957846498,-480.0,0.00015616,2]
[383483098,1756957846507,-761.13,0.00015616,2]
[383483100,1756957846517,-480.0,0.00015616,2]
[383483102,1756957846526,-1716.03,0.00015616,2]
[383483104,1756957846536,-480.0,0.00015616,2]
[383483106,1756957846546,-480.0,0.00015616,2]
[383483108,1756957846556,-560.38,0.00015616,2]
[383483110,1756957846565,-2238.11,0.00015616,2]
[383483112,1756957846574,-480.0,0.00015616,2]
[383483114,1756957846584,-555.85,0.00015616,2]
[383483116,1756957846594,-480.0,0.00015616,2]
[383483118,1756957846603,-480.0,0.00015616,2]
[383483120,1756957846612,-508.49413806,0.0001567,2]
[383483122,1756957846622,-1003.72540224,0.0001567,2]
[383483124,1756957846631,-1500.0,0.0001567,2]
[383483126,1756957846641,-800.0,0.00015677,2]
[383483128,1756957846650,-151.0,0.000157,2]
[383483130,1756957846659,-1500.0,0.00015709,2]
[383483132,1756957846670,-800.0,0.00015714,2]
[383483135,1756957846681,-201.62280128,0.00015725,2]
[383483138,1756957846692,-800.0,0.00015776,2]
[383483141,1756957846701,-800.0,0.00015782,2]
[383483143,1756957846710,-50066.573064,0.00015823,2]
[383483146,1756957846720,-151.0,0.00015823,2]
[383483148,1756957846730,-151.0,0.00015823,2]
[383483150,1756957846740,-153.886163,0.00015823,2]
[383483152,1756957846749,-152.413955,0.00015823,2]
[383483154,1756957846758,-138.96063803,0.00015823,2]
[383483209,1756957847294,-487.30312577,0.00013698,2]
[383483211,1756957847304,-480.0,0.00013972,2]
[383483213,1756957847313,-480.0,0.00014246,2]
[383483215,1756957847322,-217.11333182,0.0001452,2]
[383483229,1756957847452,-262.88666818,0.0001452,2]
[383483231,1756957847462,-6.16333182,0.00014794,2]
[383491949,1756957940114,167.01,0.00029778,60]
[383497198,1756958099960,264.7201795,0.0001525,6]
[383497201,1756958672616,716.9,0.00027,120]
[383497289,1756959031779,-171.18194806,0.00013597,2]
[383497291,1756959031789,-1600.2638335,0.00013598,2]
[383497293,1756959031798,-1200.0,0.00013695,2]
[383497295,1756959031807,-1200.0,0.00013696,2]
[383497297,1756959031816,-300.0,0.00013696,2]
[383497299,1756959031826,-300.0,0.00013696,2]
[383497301,1756959031835,-300.0,0.00013696,2]
[383497303,1756959031844,-300.0,0.00013696,2]
[383497305,1756959031854,-481.78186912,0.00013698,2]
[383497307,1756959031864,-480.0,0.00013698,2]
[383497309,1756959031874,-480.0,0.00013698,2]
[383497310,1756959031884,-314.13192448,0.00013698,2]
[383497311,1756959031894,-332.99843377,0.00013698,2]
[383497312,1756959031903,-485.80877706,0.00013698,2]
[383497313,1756959031913,-485.60463438,0.00013698,2]
[383497314,1756959031923,-483.06744069,0.00013698,2]
[383497315,1756959031933,-482.86235315,0.00013698,2]
[383497316,1756959031943,-481.8922008,0.00013698,2]
[383497317,1756959031952,-486.45800204,0.00013698,2]
[383497318,1756959031962,-486.82541058,0.00013698,2]
[383497319,1756959031971,-422.54869872,0.00013698,2]
[383497320,1756959031981,-549.04699028,0.00013698,2]
[383497321,1756959031991,-481.63672382,0.00013698,2]
[383497322,1756959032000,-480.0,0.00013698,2]
[383497323,1756959032010,-480.0,0.00013698,2]
[383497324,1756959032019,-480.0,0.00013698,2]
[383497325,1756959032029,-485.63002935,0.00013698,2]
[383497326,1756959032038,-487.15542687,0.00013698,2]
[383497327,1756959032048,-482.74724981,0.00013698,2]
[383497328,1756959032057,-480.0,0.00013698,2]
[383497329,1756959032066,-482.66486813,0.00013698,2]
[383497330,1756959032075,-480.0,0.00013698,2]
[383497331,1756959032084,-481.31611606,0.00013698,2]
[383497332,1756959032094,-481.08915461,0.00013698,2]
[383497333,1756959032103,-286.88892942,0.00013698,2]
[383497334,1756959032112,-503.83557112,0.00013698,2]
[383497335,1756959032120,-483.5146819,0.00013698,2]
[383497336,1756959032129,-490.60601439,0.00013698,2]
[383497337,1756959032138,-480.0,0.00013698,2]
[383497338,1756959032147,-480.85281871,0.00013698,2]
[383497339,1756959032157,-569.91220773,0.00013698,2]
[383497340,1756959032167,-484.34133045,0.00013698,2]
[383497341,1756959032177,-163.75058258,0.00013698,2]
[383497342,1756959032190,-319.46820256,0.00013698,2]
[383497343,1756959032200,-260.36097972,0.00013698,2]
[383497344,1756959032209,-480.0,0.00013698,2]
[383497345,1756959032218,-491.15736958,0.00013698,2]
[383497346,1756959032228,-480.0,0.00013698,2]
[383497347,1756959032237,-482.27867248,0.00013698,2]
[383497348,1756959032247,-484.30300749,0.00013698,2]
[383497349,1756959032256,-322.19738333,0.00013698,2]
[383497350,1756959032268,-157.80261667,0.00013698,2]
[383497351,1756959032277,-481.10919985,0.00013698,2]
[383497352,1756959032287,-121.75401502,0.00013698,2]
[383497353,1756959032298,-333.46923112,0.00013698,2]
[383497354,1756959032312,-51.26640057,0.00013698,2]
[383497355,1756959032322,-320.06129074,0.00013698,2]
[383497356,1756959032336,-118.48471645,0.00013698,2]
[383497357,1756959032345,-481.94199218,0.00013698,2]
[383497358,1756959032355,-168.44025298,0.00013698,2]
[383497359,1756959032373,-316.21828385,0.00013698,2]
[383497360,1756959032382,-446.12599517,0.00013698,2]
[383497361,1756959032392,-488.29076847,0.00013698,2]
[383497362,1756959032401,-43.73164981,0.00013698,2]
[383497363,1756959032414,-437.78023783,0.00013698,2]
[383497364,1756959032423,-481.94247589,0.00013698,2]
[383497365,1756959032433,-958.91673477,0.00013698,2]
[383497366,1756959032445,-906.18326523,0.00013698,2]
[383497367,1756959032454,-758.08,0.00013698,2]
[383497368,1756959032464,-480.0,0.00013698,2]
[383497369,1756959032473,-480.0,0.00013698,2]
[383497370,1756959032483,-480.0,0.00013698,2]
[383497371,1756959032492,-1020.23,0.00013698,2]
[383497372,1756959032501,-272.50673475,0.00013698,2]
[383497373,1756959032513,-437.12326525,0.00013698,2]
[383497374,1756959032523,-1430.03,0.00013698,2]
[383497375,1756959032533,-1025.45,0.00013698,2]
[383497376,1756959032543,-480.0,0.00013698,2]
[383497377,1756959032552,-480.0,0.00013698,2]
[383497378,1756959032562,-480.0,0.00013698,2]
[383497379,1756959032571,-480.0,0.00013698,2]
[383497380,1756959032581,-667.37,0.00013698,2]
[383497381,1756959032590,-480.0,0.00013698,2]
[383497382,1756959032600,-769.9,0.00013698,2]
[383497383,1756959032610,-480.0,0.00013698,2]
[383497384,1756959032620,-480.0,0.00013698,2]
[383497385,1756959032629,-480.0,0.00013698,2]
[383497386,1756959032639,-507.51778205,0.00013698,2]
[383497436,1756959037772,-51.26221795,0.00013698,2]
[383497438,1756959037782,-480.0,0.00013698,2]
[383497440,1756959037791,-480.0,0.00013698,2]
[383497442,1756959037801,-480.0,0.00013698,2]
[383497444,1756959037810,-438.90900005,0.00013698,2]
[383497447,1756959037821,-41.09099995,0.00013698,2]
[383497449,1756959037830,-480.0,0.00013698,2]
[383497451,1756959037839,-9.5498313,0.00013698,2]
[383497677,1756959039960,-252.74931602,0.00013698,2]
[383497679,1756959039970,-180.58223567,0.00013698,2]
[383497681,1756959039981,-250.81095289,0.00013698,2]
[383497964,1756959042984,-48.60681144,0.00013698,2]
[383497966,1756959042994,-480.0,0.00013698,2]
[383497968,1756959043004,-480.0,0.00013698,2]
[383497970,1756959043013,-480.0,0.00013698,2]
[383497972,1756959043022,-806.12,0.00013698,2]
[383497974,1756959043032,-566.72359948,0.00013698,2]
[383497976,1756959043042,-452.50210528,0.00013698,2]
[383497978,1756959043052,-480.0,0.00013698,2]
[383497980,1756959043062,-480.0,0.00013698,2]
[383497983,1756959043072,-480.0,0.00013698,2]
[383497985,1756959043082,-977.72,0.00013698,2]
[383497987,1756959043091,-500.0,0.00013698,2]
[383497989,1756959043101,-784.007996,0.00013699,2]
[383497991,1756959043110,-282.71629,0.00013699,2]
[383497993,1756959043120,-480.0,0.00013972,2]
[383497995,1756959043129,-480.0,0.00013972,2]
[383497997,1756959043139,-480.0,0.00013972,2]
[383497999,1756959043148,-1865.1,0.00013972,2]
[383498001,1756959043158,-758.08,0.00013972,2]
[383498003,1756959043168,-480.0,0.00013972,2]
[383498005,1756959043179,-480.0,0.00013972,2]
[383498007,1756959043188,-210.85503184,0.00013972,2]
[383498009,1756959043198,-709.63,0.00013972,2]
[383498011,1756959043207,-1430.03,0.00013972,2]
[383498013,1756959043217,-1025.45,0.00013972,2]
[383498015,1756959043227,-480.0,0.00013972,2]
[383498017,1756959043236,-480.0,0.00013972,2]
[383498019,1756959043246,-480.0,0.00013972,2]
[383498021,1756959043255,-295.30049674,0.00013972,2]
[383498023,1756959043265,-667.37,0.00013972,2]
[383498025,1756959043275,-769.9,0.00013972,2]
[383498027,1756959043285,-480.0,0.00013972,2]
[383498029,1756959043294,-480.0,0.00013972,2]
[383498031,1756959043303,-558.78,0.00013972,2]
[383498034,1756959043313,-480.0,0.00013972,2]
[383498035,1756959043323,-480.0,0.00013972,2]
[383498037,1756959043332,-480.0,0.00013972,2]
[383498039,1756959043345,-480.0,0.00013972,2]
[383498040,1756959043355,-480.0,0.00013972,2]
[383498041,1756959043365,-480.0,0.00013972,2]
[383498042,1756959043374,-480.0,0.00013972,2]
[383498043,1756959043386,-480.0,0.00013972,2]
[383498044,1756959043396,-806.12,0.00013972,2]
[383498045,1756959043406,-480.0,0.00013972,2]
[383498046,1756959043416,-480.0,0.00013972,2]
[383498047,1756959043426,-480.0,0.00013972,2]
[383498048,1756959043439,-977.72,0.00013972,2]
[383498049,1756959043448,-323.0,0.00014237,2]
[383498050,1756959043457,-500.0,0.00014245,2]
[383498051,1756959043467,-500.0,0.00014245,2]
[383498052,1756959043477,-500.0,0.00014245,2]
[383498053,1756959043486,-428.66723374,0.00014245,2]
[383498054,1756959043497,-346.48615586,0.00014245,2]
[383498055,1756959043506,-506.9721762,0.00014245,2]
[383498057,1756959043516,-230.2197068,0.00014245,2]
[383498059,1756959043525,-500.0,0.00014245,2]
[383498061,1756959043535,-218.676495,0.00014245,2]
[383498063,1756959043544,-500.0,0.00014245,2]
[383498065,1756959043553,-500.0,0.00014245,2]
[383498067,1756959043565,-500.0,0.00014245,2]
[383498069,1756959043574,-500.0,0.00014245,2]
[383498071,1756959043584,-500.0,0.00014245,2]
[383498073,1756959043593,-500.0,0.00014245,2]
[383498075,1756959043602,-500.0,0.00014245,2]
[383498077,1756959043612,-500.0,0.00014245,2]
[383498079,1756959043621,-500.0,0.00014245,2]
[383498081,1756959043630,-500.0,0.00014245,2]
[383498083,1756959043639,-466.99629155,0.00014245,2]
[383498085,1756959043649,-380.45648184,0.00014245,2]
[383498087,1756959043658,-500.0,0.00014245,2]
[383498089,1756959043667,-500.0,0.00014245,2]
[383498091,1756959043676,-120.10202479,0.00014245,2]
[383498956,1756959652678,646.03338976,0.00013158,2]
[383498964,1756959857526,-300.0,0.00013695,2]
[383498965,1756959857548,-300.0,0.00013696,2]
[383498966,1756959857570,-300.0,0.00013696,2]
[383498967,1756959857592,-300.0,0.00013696,2]
[383498968,1756959857615,-1200.0,0.00013696,2]
[383498969,1756959857636,-1200.0,0.00013697,2]
[383498970,1756959857664,-480.0,0.00013698,2]
[383498971,1756959857686,-480.0,0.00013698,2]
[383498972,1756959857709,-347.33337912,0.00013698,2]
[383498973,1756959857732,-480.0,0.00013698,2]
[383498974,1756959857754,-480.0,0.00013698,2]
[383498975,1756959857776,-480.0,0.00013698,2]
[383498976,1756959857798,-480.0,0.00013698,2]
[383498977,1756959857824,-480.0,0.00013698,2]
[383498978,1756959857851,-480.0,0.00013698,2]
[383498979,1756959857873,-480.0,0.00013698,2]
[383498980,1756959857895,-744.807596,0.00013699,2]
[383498981,1756959857918,-282.7162917,0.00013699,2]
[383498982,1756959857940,-480.0,0.0001397,2]
[383498983,1756959857968,-480.0,0.0001397,2]
[383498984,1756959857995,-480.0,0.0001397,2]
[383498985,1756959858015,-480.0,0.0001397,2]
[383498986,1756959858039,-778.95,0.0001397,2]
[383498987,1756959858062,-480.0,0.0001397,2]
[383498988,1756959858084,-998.27,0.0001397,2]
[383498989,1756959858106,-721.46,0.0001397,2]
[383498990,1756959858130,-480.0,0.0001397,2]
[383498991,1756959858152,-675.19,0.0001397,2]
[383498992,1756959858175,-480.0,0.0001397,2]
[383498993,1756959858197,-480.0,0.00013971,2]
[383498994,1756959858220,-480.0,0.00013971,2]
[383498995,1756959858241,-814.6,0.00013971,2]
[383498996,1756959858264,-480.0,0.00013971,2]
[383498997,1756959858287,-1896.18,0.00013971,2]
[383498998,1756959858310,-480.0,0.00013971,2]
[383498999,1756959858332,-501.01914912,0.00013971,2]
[383499000,1756959858356,-1453.86,0.00013971,2]
[383499001,1756959858383,-1042.54,0.00013971,2]
[383499002,1756959858410,-480.0,0.00013971,2]
[383499003,1756959858434,-480.0,0.00013971,2]
[383499004,1756959858457,-480.0,0.00013971,2]
[383499005,1756959858481,-782.73,0.00013971,2]
[383499006,1756959858504,-552.21,0.00013971,2]
[383499007,1756959858527,-480.0,0.00013971,2]
[383499008,1756959858549,-480.0,0.00013972,2]
[383499009,1756959858574,-480.0,0.00013972,2]
[383499010,1756959858597,-480.0,0.00013972,2]
[383499011,1756959858620,-480.0,0.00013972,2]
[383499012,1756959858645,-480.0,0.00013972,2]
[383499013,1756959858668,-480.0,0.00013972,2]
[383499014,1756959858690,-480.0,0.00013972,2]
[383499015,1756959858712,-500.0,0.00013972,2]
[383499016,1756959866202,480.0,0.0001397,2]
[383499017,1756959874190,480.0,0.00013971,2]
[383499018,1756959886676,480.0,0.00013971,2]
[383499019,1756959891974,480.0,0.00013971,2]
[383499020,1756959893168,474.87019286,0.0001397,2]
[383499021,1756959899350,480.0,0.0001397,2]
[383499022,1756959899842,16553.2633912,0.0001399,2]
[383499049,1756960212867,707.567216,0.00013699,2]
[383499076,1756960231882,-309.0,0.000138,2]
[383499078,1756960231892,-300.0,0.00013968,2]
[383499080,1756960231901,-300.0,0.00013968,2]
[383499082,1756960231910,-300.0,0.00013968,2]
[383499084,1756960231920,-1200.0,0.00013968,2]
[383499086,1756960231929,-849.0,0.00013969,2]
[383499088,1756960231938,-480.0,0.00013969,2]
[383499090,1756960231948,-480.0,0.00013969,2]
[383499092,1756960231957,-746.49,0.00013969,2]
[383499093,1756960231967,-444.2337504,0.0001397,2]
[383499095,1756960231978,-480.0,0.0001397,2]
[383499097,1756960231987,-480.0,0.0001397,2]
[383499099,1756960231997,-780.66,0.0001397,2]
[383499101,1756960232006,-1817.17,0.0001397,2]
[383499103,1756960232016,-956.67,0.0001397,2]
[383499105,1756960232025,-480.0,0.0001397,2]
[383499107,1756960232034,-480.0,0.0001397,2]
[383499109,1756960232044,-691.4,0.0001397,2]
[383499111,1756960232054,-480.0,0.0001397,2]
[383499113,1756960232063,-480.0,0.0001397,2]
[383499115,1756960232073,-647.05,0.0001397,2]
[383499117,1756960232083,-1393.28,0.0001397,2]
[383499119,1756960232092,-480.0,0.0001397,2]
[383499121,1756960232101,-999.1,0.0001397,2]
[383499123,1756960232110,-480.0,0.0001397,2]
[383499125,1756960232119,-480.0,0.0001397,2]
[383499127,1756960232128,-480.0,0.0001397,2]
[383499129,1756960232138,-480.0,0.0001397,2]
[383499131,1756960232148,-480.0,0.0001397,2]
[383499133,1756960232157,-480.0,0.0001397,2]
[383499134,1756960232167,-529.2,0.0001397,2]
[383499135,1756960232176,-750.11,0.0001397,2]
[383499136,1756960232185,-314.4062988,0.0001397,2]
[383499137,1756960232197,-480.0,0.0001397,2]
[383499138,1756960232206,-480.0,0.0001397,2]
[383499139,1756960232216,-480.0,0.0001397,2]
[383499140,1756960232225,-17208.8979777,0.0001397,2]
[383499141,1756960232239,-568.88,0.0001397,2]
[383499165,1756960237919,-19288.62491548,0.0001397,2]
[383499166,1756960238030,-5273.04881833,0.0001397,2]
[383499211,1756960243045,-480.0,0.00013971,2]
[383499212,1756960243055,-480.0,0.00013971,2]
[383499213,1756960243064,-209.47605531,0.00013971,2]
[383499214,1756960243074,-480.0,0.00013971,2]
[383499215,1756960243084,-480.0,0.00013971,2]
[383499216,1756960243094,-490.43892216,0.00013988,2]
[383499217,1756960243106,-9.56107784,0.00013988,2]
[383499218,1756960243115,-500.0,0.00013988,2]
[383499219,1756960243125,-500.0,0.00013988,2]
[383499220,1756960243134,-500.0,0.00013988,2]